[Event "Early-Titled-Tuesday-Blitz-March-19-2024"]
[Site "Chess.com"]
[Date "2024.03.19"]
[Round "8"]
[White "BashiqChess"]
[Black "Aleksandar-Topalov"]
[Result "1-0"]
[WhiteElo "2439"]
[BlackElo "2271"]
[TimeControl "180+1"]
[EndTime "9:29:04 PDT"]
[Termination "BashiqChess won by resignation"]

1. d4 {[%clk 0:03:00.9]} 1... e6 {[%clk 0:02:58.1]} 2. Bf4 {[%clk 0:03:00.9]}
2... f5 {[%clk 0:02:56.5]} 3. Nc3 {[%clk 0:03:00.1]} 3... Nf6 {[%clk 0:02:56.6]}
4. h4 {[%clk 0:02:58.3]} 4... Bb4 {[%clk 0:02:56.1]} 5. Bd2 {[%clk 0:02:55.6]}
5... b6 {[%clk 0:02:54.8]} 6. e3 {[%clk 0:02:55.6]} 6... Bb7 {[%clk 0:02:54.2]}
7. Nf3 {[%clk 0:02:56.3]} 7... O-O {[%clk 0:02:53.4]} 8. a3 {[%clk 0:02:56.4]}
8... Bxc3 {[%clk 0:02:52.9]} 9. Bxc3 {[%clk 0:02:57.3]} 9... Ne4 {[%clk
0:02:52.9]} 10. Be2 {[%clk 0:02:54.3]} 10... d6 {[%clk 0:02:52.4]} 11. Bd2
{[%clk 0:02:45]} 11... Nd7 {[%clk 0:02:48.3]} 12. c3 {[%clk 0:02:44.3]} 12...
Kh8 {[%clk 0:02:08.8]} 13. Qc2 {[%clk 0:02:39.7]} 13... e5 {[%clk 0:01:56.6]}
14. dxe5 {[%clk 0:02:33.6]} 14... dxe5 {[%clk 0:01:54.8]} 15. c4 {[%clk
0:02:34.1]} 15... Qe7 {[%clk 0:01:52.3]} 16. Bb4 {[%clk 0:02:31]} 16... c5
{[%clk 0:01:50.9]} 17. Bc3 {[%clk 0:02:31.3]} 17... Nxc3 {[%clk 0:01:47]} 18.
Qxc3 {[%clk 0:02:30.9]} 18... Bxf3 {[%clk 0:01:46.9]} 19. Bxf3 {[%clk
0:02:29.9]} 19... e4 {[%clk 0:01:47]} 20. Be2 {[%clk 0:02:30.2]} 20... Ne5
{[%clk 0:01:44]} 21. O-O-O {[%clk 0:02:30.1]} 21... Rad8 {[%clk 0:01:43.8]} 22.
g3 {[%clk 0:02:28.4]} 22... Kg8 {[%clk 0:01:20.3]} 23. Rxd8 {[%clk 0:02:23.3]}
23... Rxd8 {[%clk 0:01:19.8]} 24. Rd1 {[%clk 0:02:19.7]} 24... Rxd1+ {[%clk
0:01:18.5]} 25. Kxd1 {[%clk 0:02:20.6]} 25... Qd6+ {[%clk 0:01:17.2]} 26. Qd2
{[%clk 0:02:20.2]} 26... Qxd2+ {[%clk 0:01:15.8]} 27. Kxd2 {[%clk 0:02:21.1]}
27... Kf8 {[%clk 0:01:10.6]} 28. Kc3 {[%clk 0:02:21.2]} 28... Ke7 {[%clk
0:01:10.2]} 29. b4 {[%clk 0:02:20.8]} 29... Kd6 {[%clk 0:01:10.3]} 30. Kb3
{[%clk 0:02:16]} 30... g6 {[%clk 0:01:04.8]} 31. Kc3 {[%clk 0:02:15.4]} 31...
Kc6 {[%clk 0:01:01.6]} 32. h5 {[%clk 0:02:10]} 32... g5 {[%clk 0:00:54.6]} 33.
Bd1 {[%clk 0:01:58]} 33... h6 {[%clk 0:00:35.6]} 34. Be2 {[%clk 0:01:25.7]}
34... g4 {[%clk 0:00:34]} 35. Kb3 {[%clk 0:01:12.9]} 35... Kd6 {[%clk
0:00:31.9]} 36. Ka4 {[%clk 0:01:05.1]} 36... Nd7 {[%clk 0:00:25.3]} 37. Kb5
{[%clk 0:01:01]} 37... Ne5 {[%clk 0:00:20.2]} 38. Ka6 {[%clk 0:00:55.3]} 38...
Kc7 {[%clk 0:00:18]} 39. Kxa7 {[%clk 0:00:54.8]} 39... Nd3 {[%clk 0:00:17.3]}
40. b5 {[%clk 0:00:52.1]} 40... Nxf2 {[%clk 0:00:16.5]} 41. a4 {[%clk
0:00:52.6]} 41... Nh1 {[%clk 0:00:16.4]} 42. a5 {[%clk 0:00:52.9]} 42... Nxg3
{[%clk 0:00:08.3]} 43. axb6+ {[%clk 0:00:52.4]} 43... Kd7 {[%clk 0:00:08.9]} 44.
b7 {[%clk 0:00:51.6]} 44... Nxe2 {[%clk 0:00:09.5]} 45. b8=Q {[%clk 0:00:52.2]}
45... g3 {[%clk 0:00:10]} 46. Qg8 {[%clk 0:00:43.4]} 1-0

[Event "Early-Titled-Tuesday-Blitz-March-19-2024"]
[Site "Chess.com"]
[Date "2024.03.19"]
[Round "8"]
[White "BardArtem"]
[Black "picturesquecheck"]
[Result "1-0"]
[WhiteElo "2809"]
[BlackElo "2443"]
[TimeControl "180+1"]
[EndTime "9:29:07 PDT"]
[Termination "BardArtem won by resignation"]

1. e4 {[%clk 0:02:56.6]} 1... d6 {[%clk 0:03:00.9]} 2. d4 {[%clk 0:02:55.9]}
2... g6 {[%clk 0:03:01.1]} 3. Nc3 {[%clk 0:02:56.3]} 3... Bg7 {[%clk 0:03:01.8]}
4. Nf3 {[%clk 0:02:56.6]} 4... e6 {[%clk 0:03:02.5]} 5. h4 {[%clk 0:02:56.2]}
5... h5 {[%clk 0:03:02.1]} 6. Bg5 {[%clk 0:02:56]} 6... Ne7 {[%clk 0:03:01.9]}
7. e5 {[%clk 0:02:55.9]} 7... dxe5 {[%clk 0:02:52.3]} 8. dxe5 {[%clk 0:02:56.8]}
8... Qxd1+ {[%clk 0:02:37.9]} 9. Rxd1 {[%clk 0:02:57.7]} 9... Nec6 {[%clk
0:02:32.7]} 10. Ne4 {[%clk 0:02:41.6]} 10... O-O {[%clk 0:02:25.2]} 11. Nf6+
{[%clk 0:02:37]} 11... Bxf6 {[%clk 0:02:23.3]} 12. Bxf6 {[%clk 0:02:37.9]} 12...
Nd7 {[%clk 0:02:21.9]} 13. Bb5 {[%clk 0:02:34.3]} 13... Nxf6 {[%clk 0:02:21.7]}
14. exf6 {[%clk 0:02:35.2]} 14... Nb4 {[%clk 0:02:21.2]} 15. Bc4 {[%clk
0:01:45.2]} 15... Nxc2+ {[%clk 0:02:19.5]} 16. Kd2 {[%clk 0:01:42.9]} 16... Nb4
{[%clk 0:02:19.4]} 17. Ne5 {[%clk 0:01:34.2]} 17... Nd5 {[%clk 0:02:14.1]} 18.
Bxd5 {[%clk 0:01:34.6]} 18... exd5 {[%clk 0:02:15]} 19. Ke3 {[%clk 0:01:32.6]}
19... Be6 {[%clk 0:02:14.5]} 20. Kf4 {[%clk 0:01:32.2]} 20... c5 {[%clk
0:02:10.1]} 21. f3 {[%clk 0:01:30.2]} 21... b6 {[%clk 0:02:08.9]} 22. g4 {[%clk
0:01:30.4]} 22... hxg4 {[%clk 0:02:01.9]} 23. fxg4 {[%clk 0:01:31.3]} 23... d4
{[%clk 0:02:00.6]} 24. h5 {[%clk 0:01:30.7]} 24... Bd5 {[%clk 0:02:00.4]} 25.
Rh4 {[%clk 0:01:04.8]} 25... Rae8 {[%clk 0:01:56.1]} 26. g5 {[%clk 0:00:41.3]}
26... Rxe5 {[%clk 0:01:35.4]} 27. Kxe5 {[%clk 0:00:40.1]} 27... Bf3 {[%clk
0:01:35.5]} 28. hxg6 {[%clk 0:00:32.2]} 28... fxg6 {[%clk 0:01:18.7]} 29. Rd2
{[%clk 0:00:27.2]} 29... Bh5 {[%clk 0:01:14.8]} 30. Rxh5 {[%clk 0:00:26.5]}
30... gxh5 {[%clk 0:01:14.7]} 31. g6 {[%clk 0:00:23.2]} 31... Re8+ {[%clk
0:01:14.9]} 32. Kd6 {[%clk 0:00:18.7]} 32... Re3 {[%clk 0:01:04.3]} 33. Rf2
{[%clk 0:00:15.6]} 33... Rg3 {[%clk 0:00:58.9]} 34. Ke7 {[%clk 0:00:10]} 34...
Re3+ {[%clk 0:00:58.4]} 35. Kd7 {[%clk 0:00:09.9]} 35... Rg3 {[%clk 0:00:58.3]}
36. Rf5 {[%clk 0:00:03.7]} 36... d3 {[%clk 0:00:50]} 37. Rxh5 {[%clk 0:00:03]}
37... Rxg6 {[%clk 0:00:42.5]} 38. Ke7 {[%clk 0:00:02.5]} 38... Rxf6 {[%clk
0:00:32.3]} 39. Kxf6 {[%clk 0:00:03.4]} 39... c4 {[%clk 0:00:31.2]} 40. Ke5
{[%clk 0:00:03.1]} 40... b5 {[%clk 0:00:31.6]} 41. Kd4 {[%clk 0:00:02.9]} 41...
a6 {[%clk 0:00:32.5]} 42. Rh1 {[%clk 0:00:03]} 42... Kf7 {[%clk 0:00:32.6]} 43.
b3 {[%clk 0:00:03.5]} 43... cxb3 {[%clk 0:00:31.8]} 44. axb3 {[%clk 0:00:04.4]}
44... Ke6 {[%clk 0:00:31.8]} 45. Kxd3 {[%clk 0:00:05.3]} 45... Kd6 {[%clk
0:00:32.5]} 46. b4 {[%clk 0:00:05.9]} 46... Kd5 {[%clk 0:00:32.5]} 47. Rh5+
{[%clk 0:00:06.5]} 1-0

[Event "Early-Titled-Tuesday-Blitz-March-19-2024"]
[Site "Chess.com"]
[Date "2024.03.19"]
[Round "8"]
[White "Barbix1"]
[Black "toninhojit"]
[Result "0-1"]
[WhiteElo "2277"]
[BlackElo "2481"]
[TimeControl "180+1"]
[EndTime "9:29:07 PDT"]
[Termination "toninhojit won on time"]

1. d4 {[%clk 0:03:00.9]} 1... Nf6 {[%clk 0:02:59.5]} 2. c4 {[%clk 0:03:00]} 2...
e6 {[%clk 0:02:59.6]} 3. Nf3 {[%clk 0:02:59.2]} 3... c5 {[%clk 0:02:58.9]} 4. d5
{[%clk 0:02:49.1]} 4... exd5 {[%clk 0:02:59.8]} 5. cxd5 {[%clk 0:02:47.7]} 5...
d6 {[%clk 0:03:00.2]} 6. Nc3 {[%clk 0:02:44.8]} 6... g6 {[%clk 0:03:00.7]} 7.
Nd2 {[%clk 0:02:44.6]} 7... Nbd7 {[%clk 0:02:59.1]} 8. e4 {[%clk 0:02:39.1]}
8... Bg7 {[%clk 0:02:59.1]} 9. Be2 {[%clk 0:02:32.8]} 9... O-O {[%clk
0:02:59.3]} 10. O-O {[%clk 0:02:29.9]} 10... Re8 {[%clk 0:02:59.9]} 11. a4
{[%clk 0:02:21.2]} 11... Ne5 {[%clk 0:02:58.3]} 12. Ra3 {[%clk 0:02:14.9]} 12...
g5 {[%clk 0:02:56.5]} 13. Kh1 {[%clk 0:01:36.7]} 13... Ng6 {[%clk 0:02:49.8]}
14. Re1 {[%clk 0:01:26.3]} 14... Nf4 {[%clk 0:02:44.5]} 15. Bf1 {[%clk 0:01:26]}
15... Bg4 {[%clk 0:02:45.1]} 16. f3 {[%clk 0:01:24.8]} 16... Bd7 {[%clk
0:02:45.7]} 17. Nc4 {[%clk 0:01:20.5]} 17... Qc7 {[%clk 0:02:45.3]} 18. e5
{[%clk 0:00:59.1]} 18... dxe5 {[%clk 0:02:41.6]} 19. d6 {[%clk 0:00:59]} 19...
Qd8 {[%clk 0:02:38.4]} 20. Nxe5 {[%clk 0:00:59]} 20... N6h5 {[%clk 0:02:28.3]}
21. Ng4 {[%clk 0:00:26.7]} 21... Rxe1 {[%clk 0:02:14.1]} 22. Qxe1 {[%clk
0:00:26.1]} 22... f5 {[%clk 0:02:13.8]} 23. Ne3 {[%clk 0:00:25.4]} 23... Qf8
{[%clk 0:02:06.2]} 24. Bc4+ {[%clk 0:00:22.6]} 24... Kh8 {[%clk 0:02:05.7]} 25.
Qd1 {[%clk 0:00:16.2]} 25... Re8 {[%clk 0:02:05.2]} 26. Nb5 {[%clk 0:00:11.2]}
26... a6 {[%clk 0:02:03]} 27. Nc7 {[%clk 0:00:10.3]} 27... Rc8 {[%clk
0:02:01.7]} 28. Rb3 {[%clk 0:00:08.1]} 28... b5 {[%clk 0:01:49.2]} 29. axb5
{[%clk 0:00:07.7]} 29... axb5 {[%clk 0:01:49.9]} 30. Bxb5 {[%clk 0:00:08.2]}
30... Qd8 {[%clk 0:01:46.5]} 31. Bxd7 {[%clk 0:00:07.5]} 31... Qxd7 {[%clk
0:01:47.4]} 32. Rb7 {[%clk 0:00:06.8]} 32... Bd4 {[%clk 0:01:43.8]} 33. Nc4
{[%clk 0:00:05.2]} 33... Qf7 {[%clk 0:01:30.5]} 34. Qf1 {[%clk 0:00:04.5]} 34...
Rd8 {[%clk 0:01:25.6]} 35. Qe1 {[%clk 0:00:04.4]} 35... Nd5 {[%clk 0:01:19.2]}
36. d7 {[%clk 0:00:04.3]} 36... Rxd7 {[%clk 0:01:12.2]} 37. Nxd5 {[%clk
0:00:03.7]} 37... Rxb7 {[%clk 0:01:11.5]} 38. Nd6 {[%clk 0:00:03.4]} 38... Qxd5
{[%clk 0:01:08.9]} 39. Qe8+ {[%clk 0:00:03]} 39... Kg7 {[%clk 0:01:09.4]} 40.
Nxb7 {[%clk 0:00:02.6]} 40... Qxb7 {[%clk 0:01:09.9]} 41. Qxh5 {[%clk
0:00:02.5]} 41... Qe7 {[%clk 0:01:09]} 42. h4 {[%clk 0:00:01.7]} 42... Qe1+
{[%clk 0:01:08.6]} 43. Kh2 {[%clk 0:00:02.4]} 43... Qg1+ {[%clk 0:01:05.6]} 44.
Kh3 {[%clk 0:00:02.5]} 44... Qh1+ {[%clk 0:01:04.1]} 45. Kg3 {[%clk 0:00:02.8]}
45... Qxc1 {[%clk 0:00:55.6]} 46. Qe8 {[%clk 0:00:02.7]} 46... Qf4+ {[%clk
0:00:53.9]} 47. Kh3 {[%clk 0:00:01.6]} 47... g4+ {[%clk 0:00:54.5]} 0-1

[Event "Early-Titled-Tuesday-Blitz-March-19-2024"]
[Site "Chess.com"]
[Date "2024.03.19"]
[Round "8"]
[White "lamomiajunior"]
[Black "JimDiGrease"]
[Result "1-0"]
[WhiteElo "2747"]
[BlackElo "2967"]
[TimeControl "180+1"]
[EndTime "9:29:09 PDT"]
[Termination "lamomiajunior won by checkmate"]

1. d4 {[%clk 0:03:00.9]} 1... d5 {[%clk 0:03:00.3]} 2. c4 {[%clk 0:03:01.5]}
2... e6 {[%clk 0:03:00.1]} 3. Nc3 {[%clk 0:03:01.7]} 3... c6 {[%clk 0:03:00.2]}
4. Nf3 {[%clk 0:03:00.2]} 4... Nf6 {[%clk 0:03:00.4]} 5. Bg5 {[%clk 0:02:59]}
5... dxc4 {[%clk 0:03:00.5]} 6. e4 {[%clk 0:02:58.5]} 6... b5 {[%clk 0:03:01.1]}
7. e5 {[%clk 0:02:58.2]} 7... h6 {[%clk 0:03:01.7]} 8. Bh4 {[%clk 0:02:58.9]}
8... g5 {[%clk 0:03:02.3]} 9. Nxg5 {[%clk 0:02:59.6]} 9... hxg5 {[%clk
0:03:03.2]} 10. Bxg5 {[%clk 0:03:00.5]} 10... Be7 {[%clk 0:03:03.7]} 11. exf6
{[%clk 0:02:57.7]} 11... Bxf6 {[%clk 0:03:04.6]} 12. Bxf6 {[%clk 0:02:58.2]}
12... Qxf6 {[%clk 0:03:05.5]} 13. g3 {[%clk 0:02:55.6]} 13... Na6 {[%clk
0:03:06.1]} 14. Bg2 {[%clk 0:02:54.9]} 14... Bb7 {[%clk 0:03:06.7]} 15. Nxb5
{[%clk 0:02:50.1]} 15... cxb5 {[%clk 0:03:07.6]} 16. Bxb7 {[%clk 0:02:49.7]}
16... Nb4 {[%clk 0:03:08.3]} 17. O-O {[%clk 0:02:20]} 17... Rd8 {[%clk
0:03:07.7]} 18. d5 {[%clk 0:02:13.9]} 18... exd5 {[%clk 0:02:59.6]} 19. Qe1+
{[%clk 0:02:13.3]} 19... Qe7 {[%clk 0:02:54.6]} 20. Qc3 {[%clk 0:02:11.3]} 20...
d4 {[%clk 0:02:12]} 21. Qf3 {[%clk 0:02:10.7]} 21... Kf8 {[%clk 0:02:10.7]} 22.
Rae1 {[%clk 0:02:09.7]} 22... Qd6 {[%clk 0:02:05.1]} 23. Re4 {[%clk 0:01:56.7]}
23... d3 {[%clk 0:01:54.2]} 24. Rf4 {[%clk 0:01:55.9]} 24... Rd7 {[%clk
0:01:44.3]} 25. b3 {[%clk 0:01:55.3]} 25... c3 {[%clk 0:01:25.6]} 26. a3 {[%clk
0:01:51.9]} 26... Na2 {[%clk 0:01:16.9]} 27. Rf6 {[%clk 0:01:48.8]} 27... Qe5
{[%clk 0:00:54.5]} 28. Bc6 {[%clk 0:01:46.7]} 28... Rc7 {[%clk 0:00:26.5]} 29.
Bd5 {[%clk 0:01:42.7]} 29... Rh7 {[%clk 0:00:22.6]} 30. Rf5 {[%clk 0:01:41.7]}
30... Qd4 {[%clk 0:00:18.9]} 31. Be4 {[%clk 0:01:40.5]} 31... Rh6 {[%clk
0:00:08.2]} 32. Rd5 {[%clk 0:01:40.7]} 32... Qf6 {[%clk 0:00:04.1]} 33. Rf5
{[%clk 0:01:16.8]} 33... Qd4 {[%clk 0:00:03.8]} 34. Bxd3 {[%clk 0:01:13.7]}
34... Rd6 {[%clk 0:00:04.5]} 35. Bc2 {[%clk 0:01:11.9]} 35... Rdd7 {[%clk
0:00:03.8]} 36. Ra1 {[%clk 0:01:05.1]} 36... Qd2 {[%clk 0:00:01.6]} 37. Rxa2
{[%clk 0:01:05.2]} 37... Qe1+ {[%clk 0:00:02.1]} 38. Kg2 {[%clk 0:01:05.3]}
38... Rd2 {[%clk 0:00:03]} 39. Qf4 {[%clk 0:00:55.4]} 39... Re7 {[%clk
0:00:02.2]} 40. Qh6+ {[%clk 0:00:52.4]} 40... Ke8 {[%clk 0:00:02.5]} 41. Qh8+
{[%clk 0:00:47.4]} 41... Kd7 {[%clk 0:00:03.1]} 42. Rf3 {[%clk 0:00:34.9]} 42...
b4 {[%clk 0:00:01.8]} 43. axb4 {[%clk 0:00:34.3]} 43... Ree2 {[%clk 0:00:01.7]}
44. Rxa7+ {[%clk 0:00:33.7]} 44... Kc6 {[%clk 0:00:02.1]} 45. Qxc3+ {[%clk
0:00:34]} 45... Kd6 {[%clk 0:00:01.9]} 46. Qc5+ {[%clk 0:00:33.2]} 46... Ke6
{[%clk 0:00:02.1]} 47. Re7# {[%clk 0:00:34.1]} 1-0

[Event "Early-Titled-Tuesday-Blitz-March-19-2024"]
[Site "Chess.com"]
[Date "2024.03.19"]
[Round "8"]
[White "viktorskliarov"]
[Black "Matibar"]
[Result "1-0"]
[WhiteElo "2606"]
[BlackElo "2756"]
[TimeControl "180+1"]
[EndTime "9:29:19 PDT"]
[Termination "viktorskliarov won on time"]

1. e4 {[%clk 0:03:00.9]} 1... c5 {[%clk 0:02:58.3]} 2. Nf3 {[%clk 0:03:00.6]}
2... a6 {[%clk 0:02:57.6]} 3. c3 {[%clk 0:03:00.4]} 3... e6 {[%clk 0:02:57.5]}
4. d4 {[%clk 0:03:00.2]} 4... d5 {[%clk 0:02:58]} 5. e5 {[%clk 0:03:00.2]} 5...
Bd7 {[%clk 0:02:57.5]} 6. Bd3 {[%clk 0:02:41.5]} 6... Bb5 {[%clk 0:02:54.6]} 7.
Bxb5+ {[%clk 0:02:36.1]} 7... axb5 {[%clk 0:02:54.4]} 8. dxc5 {[%clk 0:02:36]}
8... Bxc5 {[%clk 0:02:54.1]} 9. O-O {[%clk 0:02:35.7]} 9... b4 {[%clk 0:02:38]}
10. cxb4 {[%clk 0:02:16.6]} 10... Bxb4 {[%clk 0:02:37.4]} 11. Qd4 {[%clk
0:02:17.2]} 11... Nc6 {[%clk 0:02:33.6]} 12. Qg4 {[%clk 0:02:16.4]} 12... g6
{[%clk 0:02:28.5]} 13. Nc3 {[%clk 0:02:00.1]} 13... h5 {[%clk 0:02:21.9]} 14.
Qg3 {[%clk 0:01:44]} 14... h4 {[%clk 0:01:16.8]} 15. Qg4 {[%clk 0:01:37]} 15...
h3 {[%clk 0:01:12.4]} 16. g3 {[%clk 0:01:34]} 16... Be7 {[%clk 0:00:58.5]} 17.
Re1 {[%clk 0:00:59]} 17... Kf8 {[%clk 0:00:56.5]} 18. Be3 {[%clk 0:00:50.9]}
18... Kg7 {[%clk 0:00:56]} 19. Rad1 {[%clk 0:00:51.1]} 19... Nh6 {[%clk
0:00:34.7]} 20. Bxh6+ {[%clk 0:00:49.3]} 20... Rxh6 {[%clk 0:00:34.2]} 21. a3
{[%clk 0:00:42.5]} 21... Qb6 {[%clk 0:00:31.5]} 22. Rd2 {[%clk 0:00:29.1]} 22...
Rh5 {[%clk 0:00:31]} 23. Ne2 {[%clk 0:00:26.3]} 23... Nxe5 {[%clk 0:00:26.2]}
24. Nxe5 {[%clk 0:00:26.5]} 24... Rxe5 {[%clk 0:00:25.6]} 25. Red1 {[%clk
0:00:22.1]} 25... Bg5 {[%clk 0:00:16.5]} 26. Rc2 {[%clk 0:00:17.7]} 26... Qb3
{[%clk 0:00:10.6]} 27. Nd4 {[%clk 0:00:09.6]} 27... Qa4 {[%clk 0:00:06.5]} 28.
b3 {[%clk 0:00:08.8]} 28... Qxa3 {[%clk 0:00:03.7]} 29. f4 {[%clk 0:00:09.1]}
29... Re4 {[%clk 0:00:03.4]} 30. Qxg5 {[%clk 0:00:09]} 30... Qb4 {[%clk
0:00:03.7]} 31. Nf3 {[%clk 0:00:08.9]} 31... Qb6+ {[%clk 0:00:03.2]} 32. Rf2
{[%clk 0:00:09]} 32... Qxb3 {[%clk 0:00:03.8]} 33. Rdf1 {[%clk 0:00:09.3]} 33...
Qe3 {[%clk 0:00:03.7]} 34. Qh4 {[%clk 0:00:09.6]} 34... Rh8 {[%clk 0:00:01.8]}
35. Qe7 {[%clk 0:00:09.9]} 35... d4 {[%clk 0:00:02.6]} 36. Ng5 {[%clk
0:00:10.3]} 36... Rf8 {[%clk 0:00:02.1]} 37. Nxe4 {[%clk 0:00:10]} 37... Qxe4
{[%clk 0:00:02.8]} 38. Rd1 {[%clk 0:00:10]} 38... d3 {[%clk 0:00:03]} 39. Qd6
{[%clk 0:00:10.1]} 39... Rc8 {[%clk 0:00:02]} 40. Qxd3 {[%clk 0:00:09.8]} 1-0

[Event "Early-Titled-Tuesday-Blitz-March-19-2024"]
[Site "Chess.com"]
[Date "2024.03.19"]
[Round "8"]
[White "PeshkaCh"]
[Black "wonderfultime"]
[Result "1/2-1/2"]
[WhiteElo "2850"]
[BlackElo "3064"]
[TimeControl "180+1"]
[EndTime "9:29:21 PDT"]
[Termination "Game drawn by repetition"]

1. Nf3 {[%clk 0:03:00.9]} 1... d5 {[%clk 0:02:54.8]} 2. d4 {[%clk 0:03:01.2]}
2... Nf6 {[%clk 0:02:54.9]} 3. c4 {[%clk 0:03:01.6]} 3... c6 {[%clk 0:02:55.1]}
4. e3 {[%clk 0:03:02.1]} 4... Bf5 {[%clk 0:02:54.9]} 5. Bd3 {[%clk 0:03:02.2]}
5... Bg6 {[%clk 0:02:55]} 6. O-O {[%clk 0:03:02.4]} 6... e6 {[%clk 0:02:55.6]}
7. Qc2 {[%clk 0:03:00.9]} 7... Nbd7 {[%clk 0:02:51.9]} 8. Nbd2 {[%clk
0:03:01.2]} 8... Be7 {[%clk 0:02:40.1]} 9. e4 {[%clk 0:03:00.8]} 9... dxe4
{[%clk 0:02:41]} 10. Nxe4 {[%clk 0:03:01.3]} 10... O-O {[%clk 0:02:41.8]} 11. b3
{[%clk 0:03:00.4]} 11... a5 {[%clk 0:02:41.6]} 12. a4 {[%clk 0:02:56.4]} 12...
Qb6 {[%clk 0:02:40.2]} 13. Re1 {[%clk 0:02:52.7]} 13... Rfd8 {[%clk 0:02:36.6]}
14. Rb1 {[%clk 0:02:49.9]} 14... Qc7 {[%clk 0:02:30.8]} 15. Bg5 {[%clk
0:02:34.8]} 15... Re8 {[%clk 0:02:12.4]} 16. Bh4 {[%clk 0:02:32.4]} 16... Bxe4
{[%clk 0:02:06.1]} 17. Bxe4 {[%clk 0:02:31.4]} 17... Rad8 {[%clk 0:02:06.2]} 18.
Bd3 {[%clk 0:02:25.3]} 18... Nf8 {[%clk 0:02:04.8]} 19. Rbd1 {[%clk 0:02:23.5]}
19... Ng6 {[%clk 0:02:05]} 20. Bg3 {[%clk 0:02:23.5]} 20... Bd6 {[%clk
0:02:05.2]} 21. Bxg6 {[%clk 0:02:14]} 21... hxg6 {[%clk 0:02:05.2]} 22. Ne5
{[%clk 0:02:14.5]} 22... Nh5 {[%clk 0:01:40.7]} 23. Bh4 {[%clk 0:01:52.7]} 23...
Be7 {[%clk 0:01:28.9]} 24. Bxe7 {[%clk 0:01:50.5]} 24... Qxe7 {[%clk 0:01:29.8]}
25. g3 {[%clk 0:01:44.9]} 25... Nf6 {[%clk 0:01:27.6]} 26. Qc3 {[%clk
0:01:43.3]} 26... Qc7 {[%clk 0:01:27.3]} 27. Nd3 {[%clk 0:01:39.2]} 27... Rd6
{[%clk 0:01:22.3]} 28. Nf4 {[%clk 0:01:22.6]} 28... Red8 {[%clk 0:01:20.6]} 29.
h4 {[%clk 0:01:21.9]} 29... Qd7 {[%clk 0:01:09.8]} 30. Qxa5 {[%clk 0:00:29]}
30... Rxd4 {[%clk 0:01:09.7]} 31. Rxd4 {[%clk 0:00:29.7]} 31... Qxd4 {[%clk
0:01:10.6]} 32. Re3 {[%clk 0:00:20.5]} 32... Ng4 {[%clk 0:01:06.1]} 33. Rf3
{[%clk 0:00:16.4]} 33... e5 {[%clk 0:00:49.4]} 34. Nh3 {[%clk 0:00:13.8]} 34...
f6 {[%clk 0:00:48.2]} 35. Kg2 {[%clk 0:00:09.9]} 35... Kh7 {[%clk 0:00:45.6]}
36. Qc7 {[%clk 0:00:08.7]} 36... Rd7 {[%clk 0:00:41]} 37. Qc8 {[%clk 0:00:09]}
37... Qd1 {[%clk 0:00:32.6]} 38. Ng5+ {[%clk 0:00:08.7]} 38... fxg5 {[%clk
0:00:29.7]} 39. Rf8 {[%clk 0:00:09.3]} 39... Ne3+ {[%clk 0:00:30.3]} 40. Kh2
{[%clk 0:00:08.5]} 40... Ng4+ {[%clk 0:00:26.1]} 41. Kg2 {[%clk 0:00:08.9]}
41... Ne3+ {[%clk 0:00:24.4]} 42. Kh2 {[%clk 0:00:09.4]} 42... Ng4+ {[%clk
0:00:11.2]} 43. Kg2 {[%clk 0:00:09.8]} 1/2-1/2

[Event "Early-Titled-Tuesday-Blitz-March-19-2024"]
[Site "Chess.com"]
[Date "2024.03.19"]
[Round "8"]
[White "Arteler"]
[Black "RebecaJimnz"]
[Result "1-0"]
[WhiteElo "2383"]
[BlackElo "2247"]
[TimeControl "180+1"]
[EndTime "9:29:22 PDT"]
[Termination "Arteler won on time"]

1. Nf3 {[%clk 0:03:00.9]} 1... d5 {[%clk 0:02:59.4]} 2. c4 {[%clk 0:03:00.8]}
2... c6 {[%clk 0:02:59.2]} 3. Nc3 {[%clk 0:02:59.3]} 3... Nf6 {[%clk 0:02:59.4]}
4. d4 {[%clk 0:02:58.9]} 4... e6 {[%clk 0:02:59.9]} 5. Bg5 {[%clk 0:02:58.5]}
5... Nbd7 {[%clk 0:02:59.6]} 6. e3 {[%clk 0:02:57.7]} 6... Be7 {[%clk
0:02:58.9]} 7. cxd5 {[%clk 0:02:55.2]} 7... exd5 {[%clk 0:02:58.8]} 8. Bd3
{[%clk 0:02:53.2]} 8... O-O {[%clk 0:02:57.3]} 9. h3 {[%clk 0:02:53]} 9... h6
{[%clk 0:02:57.7]} 10. Bh4 {[%clk 0:02:52.2]} 10... Ne4 {[%clk 0:02:38.1]} 11.
Bxe7 {[%clk 0:02:48.6]} 11... Qxe7 {[%clk 0:02:39]} 12. Qc2 {[%clk 0:02:48.9]}
12... f5 {[%clk 0:02:28.9]} 13. O-O {[%clk 0:02:40.9]} 13... Ndf6 {[%clk
0:02:09.9]} 14. a3 {[%clk 0:02:37.6]} 14... g5 {[%clk 0:02:09]} 15. Bxe4 {[%clk
0:02:32.2]} 15... fxe4 {[%clk 0:02:07]} 16. Ne5 {[%clk 0:02:31.6]} 16... Kg7
{[%clk 0:01:54.8]} 17. Ne2 {[%clk 0:02:28.3]} 17... Bf5 {[%clk 0:01:47.5]} 18.
Ng3 {[%clk 0:02:27.9]} 18... Bg6 {[%clk 0:01:44.6]} 19. Qe2 {[%clk 0:02:03.8]}
19... Nd7 {[%clk 0:01:33.2]} 20. Nxg6 {[%clk 0:02:00.5]} 20... Kxg6 {[%clk
0:01:33.4]} 21. Qh5+ {[%clk 0:01:58.5]} 21... Kg7 {[%clk 0:01:32.3]} 22. Qg4
{[%clk 0:01:41.9]} 22... Qf7 {[%clk 0:01:22.9]} 23. h4 {[%clk 0:01:28.1]} 23...
Nf6 {[%clk 0:01:19.8]} 24. Nf5+ {[%clk 0:01:07.3]} 24... Kh7 {[%clk 0:01:17.9]}
25. Qh3 {[%clk 0:01:04.3]} 25... g4 {[%clk 0:01:11.7]} 26. Qh2 {[%clk
0:00:54.4]} 26... Qg6 {[%clk 0:00:34.8]} 27. Ng3 {[%clk 0:00:41.8]} 27... h5
{[%clk 0:00:33.6]} 28. Rac1 {[%clk 0:00:35.3]} 28... Rf7 {[%clk 0:00:33.2]} 29.
Kh1 {[%clk 0:00:29.4]} 29... Raf8 {[%clk 0:00:31.9]} 30. Ne2 {[%clk 0:00:27.9]}
30... Ne8 {[%clk 0:00:24.1]} 31. Nf4 {[%clk 0:00:27.4]} 31... Qf5 {[%clk
0:00:18.6]} 32. g3 {[%clk 0:00:24.5]} 32... Nc7 {[%clk 0:00:15.1]} 33. b4 {[%clk
0:00:20.7]} 33... a6 {[%clk 0:00:15.1]} 34. Qg2 {[%clk 0:00:20.2]} 34... Kg8
{[%clk 0:00:06.2]} 35. Rc2 {[%clk 0:00:18.8]} 35... Kh7 {[%clk 0:00:06]} 36.
Rfc1 {[%clk 0:00:18.5]} 36... Kh6 {[%clk 0:00:06.5]} 37. Qf1 {[%clk 0:00:18.4]}
37... Rf6 {[%clk 0:00:03.4]} 38. a4 {[%clk 0:00:18.1]} 38... R6f7 {[%clk
0:00:03.5]} 39. Rc5 {[%clk 0:00:15.8]} 39... Qf6 {[%clk 0:00:02.6]} 40. b5
{[%clk 0:00:14]} 40... axb5 {[%clk 0:00:02.4]} 41. axb5 {[%clk 0:00:14.3]} 1-0